Cogmind - Beta 15 @@@ ROGUE MODE // 2025.05.25 @ 11:46:43 Player: Niko Result: Destroyed by G-47 Trooper with Particle Gun Performance ------------- Evolutions (2) 1000 Regions Visited (3) 600 Robots Destroyed (21) 105 Value Destroyed (753) 753 Prototype IDs (1) 20 Alien Tech Used (0) 0 Bonus (0) 0 TOTAL SCORE: 2478 Bonus ------- None Cogmind --------- Core Integrity 0/550 Matter 227/300 Energy 99/100 System Corruption 0% Temperature Cool (9) Movement Core (50) Location -8/Materials Parts ------- > --- POWER (1) -------- (None) > --- PROPULSION (3) --- (None) > --- UTILITY (4) ------ Terrain Scan Processor Hacking Suite > --- WEAPON (3) ------- (None) > --- INVENTORY (5) ---- Deuterium Engine Carbon-fiber Leg Carbon-fiber Leg Improved Carbon-fiber Leg Weapon Cycler Peak State ------------ > --- POWER ------------ Light Ion Engine > --- PROPULSION ------- Improved Carbon-fiber Leg Improved Carbon-fiber Leg Improved Carbon-fiber Leg > --- UTILITY ---------- Small Storage Unit Terrain Scanner Terrain Scan Processor Hacking Suite > --- WEAPON ----------- Heavy EM Shotgun Beam Rifle Grenade Launcher > --- INVENTORY -------- Deuterium Engine Carbon-fiber Leg Carbon-fiber Leg Carbon-fiber Leg Carbon-fiber Leg Improved Carbon-fiber Leg Weapon Cycler Beam Rifle [Rating: 29] Favorites ----------- Power Subdweller Power Source Engine Subdweller Power Source Propulsion Light Treads Treads Light Treads Leg Carbon-fiber Leg Utility Small Storage Unit Device Terrain Scanner Storage Small Storage Unit Processor Terrain Scan Processor Hackware Hacking Suite Protection Scrap Shield Weapon Assault Rifle Energy Gun Beam Rifle Ballistic Gun Assault Rifle Launcher Grenade Launcher Build | -11 -10 -10 -8 ------- Run | Yrd Mat Sub Mat Slots Evolved 4 | . . . 4 Power . | . . . . Propulsion 1 | . . . 1 Utility 2 | . . . 2 Weapon 1 | . . . 1 Parts Attached 27 | 6 . 2 19 Power 4 | 1 . 1 2 Engine 4 | 1 . 1 2 Core . | . . . . Reactor . | . . . . Propulsion 9 | 2 . . 7 Treads 2 | 2 . . . Leg 7 | . . . 7 Wheel . | . . . . Hover . | . . . . Flight . | . . . . Utility 5 | 1 . 1 3 Device 1 | . . . 1 Storage 1 | 1 . . . Processor 1 | . . . 1 Hackware 1 | . . . 1 Protection 1 | . . 1 . Artifact . | . . . . Weapon 9 | 2 . . 7 Energy Gun 5 | . . . 5 Energy Cannon . | . . . . Ballistic Gun 2 | 2 . . . Ballistic Cannon . | . . . . Launcher 2 | . . . 2 Special Weapon . | . . . . Impact Weapon . | . . . . Slashing Weapon . | . . . . Piercing Weapon . | . . . . Special Melee Weapon . | . . . . Unidentified Prototypes 1 | . . . 1 Parts Lost 18 | . . 4 14 Power 4 | . . 2 2 Propulsion 3 | . . . 3 Utility 2 | . . 1 1 Weapon 9 | . . 1 8 Highest Loss Streak 8 | . . 3 8 To Critical Strikes . | . . . . Average Backups 2 | 1 1 3 2 Power 1 | . 1 1 1 Propulsion . | . . . . Utility . | . . . . Weapon . | . . 1 . Tool/Special . | . . . . Unused Backups 8 | . . 3 5 Power 2 | . . 1 1 Propulsion 3 | . . . 3 Utility 1 | . . . 1 Weapon 2 | . . 2 . Tool/Special . | . . . . Average Slot Usage (%) 70 | . 85 76 64 Engine 8 | . 14 7 7 Treads 11 | . 28 26 . Leg 6 | . . . 11 Device 3 | . . . 6 Storage 9 | . 14 9 8 Processor 3 | . . . 6 Hackware 3 | . . . 5 Protection 1 | . . 3 . Energy Gun 5 | . . . 9 Ballistic Gun 12 | . 28 27 2 Launcher 3 | . . . 5 Peak Build Rating 29 | 6 6 9 29 Average Rating 10 | 4 6 6 14 On Entrance 3 | . 6 6 1 Naked Turns . | . . . . Heaviest Build 27 | 14 14 27 19 Greatest Support 54 | 40 40 40 54 Greatest Overweight (x) 4 | . . 1 4 Average Overweight (x) . | . . . . Largest Inventory Capacity 8 | 8 8 8 8 Average Capacity 7 | 7 8 6 7 Most Carried 8 | 5 2 7 8 Average Carried 3 | 1 1 4 2 Final Capacity 8 | 8 8 5 5 Final Carried 5 | 1 2 5 5 Class Distribution -------------------- 68% | Mutant 16% | Skirmisher 15% | Scavenger-Mutant Dominant Class ---------------- Mutant | -10/Materials Mutant | -10/Subcaves Mutant | -8/Materials Resources | -11 -10 -10 -8 ----------- Run | Yrd Mat Sub Mat Matter Collected 630 | 178 . 102 350 Remotely . | . . . . Salvage Created 720 | . . 212 508 Parts 47 | . . 16 31 Haulers Intercepted . | . . . . Recyclers Shooed . | . . . . Parts Field Recycled . | . . . . Retrieved Matter . | . . . . Parts Self-Destructed 6 | . . 6 . Prevented . | . . . . Kills | -11 -10 -10 -8 ------- Run | Yrd Mat Sub Mat Combat Hostiles Destroyed 18 | . . 4 14 Melee 1 | . . . 1 Guns 9 | . . 4 5 AOE 8 | . . . 8 Classes Destroyed 8 | . . 2 6 Builder 1 | . . . 1 Tunneler 1 | . . . 1 Watcher 1 | . . . 1 Swarmer 3 | . . . 3 Grunt 9 | . . . 9 Sentry 2 | . . . 2 Cobbler 1 | . . 1 . Subdweller 4 | . . 4 . Best Kill Streak 5 | . . 1 5 Combat Bots Only 5 | . . 1 5 Max Kills in Single Turn 4 | . . 1 4 Gunslinging . | . . . . Exploded 3 | . . . 3 Melee 1 | . . . 1 Uniques/NPCs Destroyed . | . . . . Combat | -11 -10 -10 -8 -------- Run | Yrd Mat Sub Mat Hostile Shots Fired 194 | . . 70 124 Missed 57 | . . 24 33 Hits 137 | . . 46 91 Melee 2 | . . . 2 Projectile 135 | . . 46 89 AOE 3 | . . 1 2 Critical Strikes 5 | . . 2 3 Damage Taken 2638 | . . 1005 1633 Core 772 | . . 216 556 Absorbed by Shields . | . . . . Core Remaining (%) 56 | 100 . 13 . Volleys Fired 65 | . . 31 34 Largest 3 | . . 2 3 Hottest 136 | . . 40 136 Shots Fired 114 | . . 62 52 Gun 102 | . . 62 40 Cannon . | . . . . Launcher 12 | . . . 12 Special . | . . . . Kinetic 71 | . . 62 9 Thermal 22 | . . . 22 Explosive 12 | . . . 12 Electromagnetic 9 | . . . 9 Robot Hit Streak 18 | . . 12 18 Robot Miss Streak 3 | . . 2 3 Penetration Max . | . . . . Secondary Targets . | . . . . Shots Hit Robots 86 | . . 48 38 Core Hits 56 | . . 13 43 Critical Kills . | . . . . Critical Parts Destroyed . | . . . . Critical Strikes 1 | . . . 1 Burn 1 | . . . 1 Melee Attacks . | . . . . Impact . | . . . . Slashing . | . . . . Piercing . | . . . . Sneak Attacks . | . . . . Combat Hostiles . | . . . . Follow-up Attacks . | . . . . Damage Inflicted 1927 | . . 366 1561 Guns 917 | . . 366 551 Cannons . | . . . . Explosions 996 | . . . 996 Melee . | . . . . Ramming 14 | . . . 14 Kinetic 462 | . . 366 96 Thermal 305 | . . . 305 Explosive 897 | . . . 897 Electromagnetic 249 | . . . 249 Impact . | . . . . Slashing . | . . . . Piercing . | . . . . Highest Corruption . | . . . . Average Corruption . | . . . . Corruption Purged . | . . . . Corruption Blocked . | . . . . Overload Shots . | . . . . Overflow Damage 9 | . . . 9 Projectiles . | . . . . Explosions 9 | . . . 9 Melee . | . . . . Knockbacks . | . . . . Impact . | . . . . Kinetic . | . . . . Secondary . | . . . . Self-Inflicted Damage 104 | . . . 104 Shots 3 | . . . 3 Rammed . | . . . . Targets Rammed 6 | . . . 6 Kicked 6 | . . . 6 Crushed . | . . . . Highest Temperature 275 | . . . 275 Average Temperature 75 | . . . 75 Received Heat Transfer 867 | . . 102 765 Siege Activations . | . . . . Martial Activations . | . . . . Shielding Activations . | . . . . Robots Disrupted . | . . . . Combat Hostiles . | . . . . Robots Corrupted . | . . . . Combat Hostiles . | . . . . Parts Fried 1 | . . . 1 Impact Corruptions . | . . . . Robots Melted . | . . . . Combat Hostiles . | . . . . Parts Melted . | . . . . Heat Transferred 692 | . . . 692 Parts Sabotaged . | . . . . Parts Stolen . | . . . . Parts Stripped . | . . . . Power Chain Reactions 2 | . . . 2 Alert | -11 -10 -10 -8 ------- Run | Yrd Mat Sub Mat Maximum Alert Level . | . . . . Low Security (%) 100 | 100 100 . 100 Level 1 . | . . . . Level 2 . | . . . . Level 3 . | . . . . Level 4 . | . . . . Level 5 . | . . . . High Security . | . . . . Max Security . | . . . . Peak Influence 165 | . . . 165 Initial . | . . . . Average 71 | . . . 88 Influence Increases 477 | . . . 477 Destroy 0b10 Robot/C 280 | . . . 280 Destroy 0b10 Robot/NC 15 | . . . 15 Destroy Leader 52 | . . . 52 Successful Hack 4 | . . . 4 Disable Machine 15 | . . . 15 Destroy Structure 66 | . . . 66 Lose Combat Pursuer 45 | . . . 45 Influence Decreases 424 | . . . 424 Time Decay 284 | . . . 284 Lost Part 140 | . . . 140 Squads Dispatched 2 | . . . 2 Investigation 1 | . . . 1 Extermination . | . . . . Reinforcement 1 | . . . 1 Assault . | . . . . Garrison . | . . . . Intercept . | . . . . Searches Triggered . | . . . . Construction Impeded . | . . . . Haulers Reinforced . | . . . . Active Scanning Responses . | . . . . Cargo Convoy Interrupts . | . . . . Stealth | -11 -10 -10 -8 --------- Run | Yrd Mat Sub Mat Distress Signals 5 | . . . 5 Communications Jammed . | . . . . Distress Signals . | . . . . Times Spotted 46 | . . 9 37 Peak Tracking Total 15 | . . 4 15 Tactical Retreats 2 | . . . 2 Traps | -11 -10 -10 -8 ------- Run | Yrd Mat Sub Mat Traps Triggered . | . . . . Indirectly . | . . . . Trap Hack Attempts . | . . . . Triggered . | . . . . Disarmed . | . . . . Reprogrammed . | . . . . Reused . | . . . . Traps Extracted . | . . . . Installed . | . . . . Triggered . | . . . . Machines | -11 -10 -10 -8 ---------- Run | Yrd Mat Sub Mat Machines Disabled 1 | . . . 1 Max in Single Turn 1 | . . . 1 Machines Repaired . | . . . . Machines Dismantled . | . . . . Machines Sabotaged . | . . . . Overloaded Fab Kills . | . . . . Hacking | -11 -10 -10 -8 --------- Run | Yrd Mat Sub Mat Machines Accessed 3 | . 1 . 2 Terminals 2 | . 1 . 1 Fabricators . | . . . . Repair Stations . | . . . . Recycling Units . | . . . . Scanalyzers 1 | . . . 1 Garrison Access . | . . . . Total Hacks 9 | . 2 . 7 Successful 5 | . . . 5 Failed 4 | . 2 . 2 Catastrophic . | . . . . Database Lockouts . | . . . . Manual . | . . . . Terminals 6 | . 2 . 4 Fabricators . | . . . . Repair Stations . | . . . . Recycling Units . | . . . . Scanalyzers 3 | . . . 3 Garrison Access . | . . . . Terminal Hacks 2 | . . . 2 Locate Traps 1 | . . . 1 Zone Layout 1 | . . . 1 Fabricator Hacks . | . . . . Repair Station Hacks . | . . . . Recycling Unit Hacks . | . . . . Scanalyzer 3 | . . . 3 Insert Component 1 | . . . 1 Analyze 2 | . . . 2 Garrison Access Hacks . | . . . . Unauthorized Hacks . | . . . . Terminals . | . . . . Fabricators . | . . . . Repair Stations . | . . . . Recycling Units . | . . . . Scanalyzers . | . . . . Garrison Access . | . . . . Data Cores Recovered . | . . . . Used . | . . . . Hacking Detections 3 | . 1 . 2 Full Trace Events 1 | . . . 1 Feedback Events . | . . . . Feedback Blocked . | . . . . Robot Schematics Acquired . | . . . . Robots Built . | . . . . Authchips . | . . . . Time . | . . . . Total Robot Build Rating . | . . . . Part Schematics Acquired 1 | . . . 1 Parts Built . | . . . . Authchips . | . . . . Time . | . . . . Total Part Build Rating . | . . . . Parts Repaired . | . . . . Time . | . . . . Parts Recycled . | . . . . Recycled Matter . | . . . . Retrieved Matter . | . . . . Retrieved Components . | . . . . Parts Scanalyzed 1 | . . . 1 Part Schematics Acquired 1 | . . . 1 Parts Damaged . | . . . . Bothacking | -11 -10 -10 -8 ------------ Run | Yrd Mat Sub Mat Used RIF Installer . | . . . . Robots Hacked . | . . . . Non-combat . | . . . . Combat . | . . . . Robot Hacks Applied . | . . . . Relay Couplers Released . | . . . . Fabnet Peak Effective % . | . . . . Robots Rewired . | . . . . Allies Hacked . | . . . . Hacks Repelled . | . . . . Allies | -11 -10 -10 -8 -------- Run | Yrd Mat Sub Mat Total Allies . | . . . . Largest Group . | . . . . Highest-Rated Group . | . . . . Highest-Rated Ally . | . . . . Total Orders . | . . . . Ally Attacks . | . . . . Total Damage . | . . . . Kills . | . . . . Allies Corrupted . | . . . . Allies Melted . | . . . . Intel | -11 -10 -10 -8 ------- Run | Yrd Mat Sub Mat Active Infowar (turns) 532 | . . . 532 Terrain 532 | . . . 532 Robot Analysis Total . | . . . . Derelict Logs Recovered 1 | . . 1 . Drone Launches . | . . . . Drone Recoveries . | . . . . Exploration | -11 -10 -10 -8 ------------- Run | Yrd Mat Sub Mat Turns Passed 1368 | 80 99 431 758 Spaces Moved 743 | 61 62 203 417 Core 179 | 27 . 15 137 Treads 284 | 34 62 188 . Legs 280 | . . . 280 Wheels . | . . . . Hover . | . . . . Flight . | . . . . Fastest Speed 50 | 50 160 50 50 Average Speed 140 | 111 160 155 135 Slowest Speed 250 | 160 160 160 250 Overloaded Moves . | . . . . Propulsion Burnouts . | . . . . Robots Hopped . | . . . . Potential Cave-ins . | . . . . Cave-ins Triggered . | . . . . Exploration Rate (%) 18 | 5 14 18 36 Regions Visited 3 Branch Regions 1 Pre-discovered Areas 2 | . . 2 . Known Exits Taken . | . . . . Unknown Exits Taken 3 | 1 1 1 . Scrap Searched . | . . . . Spaces Dug . | . . . . Terrain Destroyed 68 | . . . 68 Melee . | . . . . Projectile . | . . . . AOE 68 | . . . 68 Terrain Rammed . | . . . . Walls Destroyed . | . . . . Machines Disabled . | . . . . Actions | -11 -10 -10 -8 --------- Run | Yrd Mat Sub Mat Total 955 | 73 62 259 561 Wait 63 | . . 5 58 Move 740 | 60 61 202 417 Hop . | . . . . Pick Up 38 | 7 1 10 20 Fast Attach 1 | . . 1 . Attach 24 | 6 . 1 17 Detach . | . . . . Swap 3 | . . . 3 Drop 13 | . . 7 6 Fire 65 | . . 31 34 Melee . | . . . . Ram . | . . . . Kick 6 | . . . 6 Crush . | . . . . Escape Stasis . | . . . . Rewire . | . . . . Trap . | . . . . Miscellaneous 2 | . . 2 . Route ------- -11/Scrapyard -10/Materials -10/Subcaves -8/Materials History --------- Turn | Location | Event 12 | -11/Scrapyard | Discovered new exit (range 15) 81 | -11/Scrapyard | Entered Materials 148 | -10/Materials | Discovered new exit (range 8) 180 | -10/Materials | Entered Subcaves 310 | -10/Subcaves | Build established: Mutant 441 | -10/Subcaves | Ambushed by angry Subdweller bent on revenge 553 | -10/Subcaves | Discovered new exit (range 9) 562 | -10/Subcaves | Learned location of Zion (-6) 562 | -10/Subcaves | Met a Zionite searching for "candidates" 565 | -10/Subcaves | Shifting Twisted Machinery released Sub. Monowheel 566 | -10/Subcaves | Shifting Twisted Machinery released Flamer 570 | -10/Subcaves | A Subdweller sparked back to life 570 | -10/Subcaves | A Subdweller sparked back to life 570 | -10/Subcaves | A Subdweller sparked back to life 581 | -10/Subcaves | Core integrity fell below 50% 598 | -10/Subcaves | Core integrity fell below 20% 611 | -10/Subcaves | Entered Materials 611 | -8/Materials | Evolved 4 slots: Propulsion x1, Utility x2, Weapon x1 640 | -8/Materials | Lost 3 parts (1p1u1w) 816 | -8/Materials | Lost 3 parts (3w) 1252 | -8/Materials | Core integrity fell below 50% 1343 | -8/Materials | Core integrity fell below 20% 1369 | -8/Materials | Destroyed by G-47 Trooper with Particle Gun Last Messages --------------- Kicked G-47 Trooper out of the way. G-47 Trooper destroyed. K-01 Serf collects debris. Acquired 37 matter. Beam Rifle destroyed. K-01 Serf collects debris. G-47 Trooper suffers critical hit (Burn). Imp. Carbon-fiber Leg destroyed. Beam Rifle destroyed. Dropped Sml. Storage Unit. K-01 Serf collects debris. Terrain Scanner destroyed. Imp. Carbon-fiber Leg destroyed. Dropped Imp. Carbon-fiber Leg. K-01 Serf collects debris. ALERT: Suspicious intruders detected, dispatching Cutter reinforcements to area. Knocked back. C-17 Slicer knocked back. W-25 Informer sends out distress signal. Map ----- +----------------------------------------------------+ | | | | | | | | | | | | | ?????????????????????????????????????????????????? | | ?????????????????????????????????????????????????? | | ?????????????????????????????????????????????????? | | ?????????????????????????????????????????????????? | | ?????????????????????????????????????????????????? | | ?????????????????????????????????????????????????? | | ????????????????????????????????#????????????????? | | ??????????????????????????????? ??????????????? | | ????????????????????????? ??? ????????????? | | ??????????????????????""""" ????????????? | | ??????????????????????"""""""" ???????????? | | ???????????????????????"" """ ! ???????????? | | ??????##+#????????????? ??????????? | | ?????## ?????????????/ ??????????? | | ?????? ?????##??????# ??????????? | | ??????? ???? ???????# g ?????????? | | ???????# #???? =???????# g ?????????? | | ???????# ###?? ????????# b ??????????? | | ?????### ### ????????# #???????????????? | | ?????# ##########c@ #???????????????? | | ##???# cw #???????????????? | | #???# ####### #???????????????? | | "#???# ## ?????# #???????????????? | | "#???### ### ?????# ######## ###???????????????? | | "#?????# ## ????# #????????#?????????????????? | | #?????# ### ????# #??????????????????????????? | | #?????# #?# ???+ +??????????????????????????? | | ######## ### ???# #??????????????????????????? | | # ??# #??????????????????????????? | | # ??# ???????????????????????????? | | + ?? ???????????????????????????? | | # ?? ???????????????????????????? | | + ? ???????????????????????????? | | #######+#### ? ???????????????????????????? | | ???????? ?? ??? ???????????????????????????? | | ###?????? ? ????? ???????????????????????????? | | +?????? #? ?????????????????????????????????? | | ##???????#?? ?????????????????????????????????? | | #???????????###????????????????????????????????? | | ###??????????????????????????????????????????????? | | ?????????????????????????????????????????????????? | | ?????????????????????????????????????????????????? | | ?????????????????????????????????????????????????? | | ???#?????????????????????????????????????????????? | +----------------------------------------------------+ Best States ------------- Heat Dissipation 31 Energy Generation 15 Energy Capacity 250 Matter Stores 233 Matter Capacity 300 Sight Range 16 Terrain Scan Range 14 Terrain Scan Density 85 Armor Coverage 800 Evasion (%) 55 Recoil Reduction 2 Offensive Hacking 10 Item Schematics ----------------- Lgt. Ion Engine | -8/Materials | Scanalyzed Robot Schematics ------------------ None Fabricated ------------ Nothing Repaired ---------- Nothing Alien Tech Used ----------------- None Achievements -------------- None Challenges ------------ None Game ------ Seed SapperPointySpiker Manual? 0 Play Time 00:16:07 Cumulative 26.5 hours Start 2025.05.24 @ 10:39:44 End 2025.05.25 @ 11:46:43 Sessions 2 Manual Loads 0 Difficulty Rogue Special Mode None Game No. 49 Rogue 49 Adventurer 0 Explorer 0 Win Type - Total 0 Types 0/0/0/0/0/0/0/0/0/0 Lore% 14 Gallery% 24 Achievement% 25 Wizard Run 0 Options --------- Layout 1 ASCII 0 Keyboard 0 Movement Mouse Keybinds 0 Fullscreen 1 Font 24/Smallcaps Map View 50x35 Zoom Use 0% Tactical HUD 0 Map Filters NONE Filters NONE Steam 1 RUN: 50ddb3c9-b689-4124-8e88-61d1a02605f0